fUST/lending_fUST_20250724
["ID","MTS","AMOUNT","RATE_DAILY","PERIOD"]
[374477406,1753315859561,-3248.67,0.00022465,2]
[374477407,1753315859571,-460.0,0.00022465,2]
[374477408,1753315859581,-579.41,0.00022465,2]
[374477409,1753315859590,-3509.86,0.00022465,2]
[374477410,1753315859601,-1815.77,0.00022465,2]
[374477411,1753315859611,-460.0,0.00022465,2]
[374477412,1753315859621,-460.0,0.00022465,2]
[374477413,1753315859631,-460.0,0.00022465,2]
[374477414,1753315859641,-606.49,0.00022465,2]
[374477415,1753315859650,-460.0,0.00022465,2]
[374477416,1753315859659,-645.58,0.00022465,2]
[374477417,1753315859669,-1430.55,0.00022465,2]
[374477418,1753315859679,-1596.33,0.00022465,2]
[374477419,1753315859689,-460.0,0.00022465,2]
[374477420,1753315859699,-413.65,0.00022465,2]
[374477421,1753315859709,-460.0,0.00022465,2]
[374477422,1753315859718,-1015.54,0.00022465,2]
[374477423,1753315859728,-451.7,0.00022465,2]
[374477424,1753315859738,-1069.89,0.00022465,2]
[374477425,1753315859748,-674.14,0.00022465,2]
[374477426,1753315859758,-1074.8,0.00022465,2]
[374477427,1753315859768,-460.0,0.00022465,2]
[374477428,1753315859777,-460.0,0.00022465,2]
[374477429,1753315859787,-460.0,0.00022465,2]
[374477430,1753315859797,-1504.83,0.00022465,2]
[374477431,1753315859807,-828.07,0.00022465,2]
[374477432,1753315859817,-217.04482,0.00022473,7]
[374477433,1753315859827,-217.04482,0.00022473,7]
[374477434,1753315859836,-165.576631,0.0002249,7]
[374477435,1753315859846,-165.576631,0.0002249,7]
[374477436,1753315859856,-151.0,0.0002249,7]
[374477437,1753315859866,-411.541725,0.0002249,7]
[374477438,1753315859875,-411.541725,0.0002249,7]
[374477439,1753315859884,-165.576631,0.000225,7]
[374477440,1753315859894,-165.576631,0.000225,7]
[374477441,1753315859905,-217.04482,0.000225,7]
[374477442,1753315859914,-217.04482,0.000225,7]
[374477443,1753315859926,-151.0,0.000225,7]
[374477444,1753315859936,-151.0,0.000225,7]
[374477445,1753315859945,-411.541725,0.000225,7]
[374477446,1753315859955,-411.541725,0.000225,7]
[374477447,1753315859965,-158.853062,0.000225,7]
[374477448,1753315859975,-158.853062,0.000225,7]
[374477449,1753315859988,-151.0,0.000225,7]
[374477450,1753315859999,-151.0,0.000225,7]
[374477451,1753315860009,-332.1806871,0.0002256,2]
[374477452,1753315860021,-664.31338182,0.00022607,2]
[374477453,1753315860031,-607.63852178,0.00022739,2]
[374477454,1753315860041,-460.0,0.00022739,2]
[374477455,1753315860052,-729.98,0.00022739,2]
[374477456,1753315860063,-460.0,0.00022739,2]
[374477457,1753315860074,-460.0,0.00022739,2]
[374477458,1753315860085,-624.26,0.00022739,2]
[374477459,1753315860095,-460.0,0.00022739,2]
[374477460,1753315860105,-541.16,0.00022739,2]
[374477461,1753315860116,-967.78,0.00022739,2]
[374477462,1753315860126,-460.0,0.00022739,2]
[374477463,1753315860136,-163.49304091,0.00022739,2]
[374477464,1753315860146,-460.0,0.00022739,2]
[374477465,1753315860156,-591.07,0.00022739,2]
[374477466,1753315860166,-460.0,0.00022739,2]
[374477467,1753315860176,-501.96,0.00022739,2]
[374477468,1753315860186,-460.0,0.00022739,2]
[374477469,1753315860195,-1169.44,0.00022739,2]
[374477470,1753315860206,-375.2,0.00022739,2]
[374477471,1753315860217,-460.0,0.00022739,2]
[374477472,1753315860226,-3248.67,0.00022739,2]
[374477473,1753315860237,-460.0,0.00022739,2]
[374477474,1753315860247,-579.41,0.00022739,2]
[374477475,1753315860257,-1815.77,0.00022739,2]
[374477476,1753315860267,-3509.86,0.00022739,2]
[374477477,1753315860276,-460.0,0.00022739,2]
[374477478,1753315860286,-437.67507225,0.00022739,2]
[374477479,1753315860296,-606.49,0.00022739,2]
[374477480,1753315860306,-460.0,0.00022739,2]
[374477481,1753315860316,-460.0,0.00022739,2]
[374477482,1753315860325,-645.58,0.00022739,2]
[374477483,1753315860335,-1430.55,0.00022739,2]
[374477484,1753315860345,-1596.33,0.00022739,2]
[374477485,1753315860355,-460.0,0.00022739,2]
[374477486,1753315860364,-460.0,0.00022739,2]
[374477487,1753315860374,-1015.54,0.00022739,2]
[374477488,1753315860384,-1069.89,0.00022739,2]
[374477489,1753315860395,-674.14,0.00022739,2]
[374477490,1753315860404,-1074.8,0.00022739,2]
[374477491,1753315860414,-460.0,0.00022739,2]
[374477492,1753315860424,-460.0,0.00022739,2]
[374477493,1753315860433,-460.0,0.00022739,2]
[374477494,1753315860444,-1504.83,0.00022739,2]
[374477495,1753315860455,-828.07,0.00022739,2]
[374477496,1753315860465,-159.8396335,0.00022849,2]
[374477497,1753315860475,-306.0,0.00022849,2]
[374477498,1753315860485,-969.0,0.00022925,2]
[374477499,1753315860495,-12520.89489481,0.00022989,2]
[374477500,1753315860670,-460.0,0.00021095,2]
[374477501,1753315860680,-50.2507475,0.00021369,2]
[374477502,1753315860692,-409.7492525,0.00021369,2]
[374477503,1753315860702,-460.0,0.00021643,2]
[374477504,1753315860712,-460.0,0.00021917,2]
[374477505,1753315860721,-484.43,0.00022191,2]
[374477506,1753315860732,-3000.0,0.00023,2]
[374477507,1753315860741,-1695.31,0.00023,2]
[374477508,1753315860751,-160.0,0.00023,2]
[374477509,1753315860760,-624.51011832,0.0002301,2]
[374477510,1753315860772,-881.7086952,0.0002301,2]
[374477511,1753315861005,-0.61910107,0.0002301,2]
[374477512,1753315861020,-1493.16208541,0.0002301,2]
[374477513,1753315861029,-46.32650599,0.00023013,2]
[374477514,1753315874317,920.0,0.00026027,120]
[374477521,1753316023846,192.868657,0.00013699,2]
[374477526,1753316256221,-183.0,0.00018977,2]
[374477527,1753316256246,-350.24751236,0.00019077,2]
[374477528,1753316256285,-492.51295185,0.00019077,2]
[374477529,1753316256310,-257.91123582,0.00019078,2]
[374477530,1753316256336,-20578.45819188,0.00019078,2]
[374477531,1753316256360,-556.56666899,0.00019177,2]
[374477532,1753316256383,-460.0,0.00019178,2]
[374477533,1753316256407,-460.0,0.00019178,2]
[374477534,1753316256430,-460.0,0.00019178,2]
[374477535,1753316256452,-460.0,0.00019178,2]
[374477536,1753316256478,-460.0,0.00019178,2]
[374477537,1753316256501,-460.0,0.00019178,2]
[374477538,1753316256524,-460.0,0.00019178,2]
[374477539,1753316256547,-500.0,0.00019178,2]
[374477540,1753316256569,-500.0,0.00019178,2]
[374477541,1753316256593,-460.0,0.00019178,2]
[374477542,1753316256616,-460.0,0.00019178,2]
[374477543,1753316256638,-460.0,0.00019178,2]
[374477544,1753316256661,-460.0,0.00019178,2]
[374477545,1753316256683,-460.0,0.00019178,2]
[374477546,1753316256705,-460.0,0.00019178,2]
[374477547,1753316256729,-460.0,0.00019178,2]
[374477548,1753316256753,-460.0,0.00019178,2]
[374477549,1753316256777,-460.0,0.00019178,2]
[374477550,1753316256799,-460.0,0.00019178,2]
[374477551,1753316256824,-460.0,0.00019178,2]
[374477552,1753316256846,-506.91666108,0.00019178,2]
[374477553,1753316256869,-460.0,0.00019178,2]
[374477554,1753316256891,-460.0,0.00019178,2]
[374477555,1753316256917,-274.38677802,0.00019178,2]
[374477556,1753316297571,-185.61322198,0.00019178,2]
[374477557,1753316297596,-460.0,0.00019178,2]
[374477558,1753316297620,-460.0,0.00019178,2]
[374477559,1753316297643,-176.04671949,0.00019178,2]
[374477560,1753316297666,-460.0,0.00019178,2]
[374477561,1753316297693,-460.0,0.00019178,2]
[374477562,1753316297715,-460.0,0.00019178,2]
[374477563,1753316297741,-460.0,0.00019178,2]
[374477564,1753316297765,-460.0,0.00019178,2]
[374477565,1753316297787,-460.0,0.00019178,2]
[374477566,1753316297809,-460.0,0.00019178,2]
[374477567,1753316297836,-715.28,0.00019178,2]
[374477568,1753316297861,-460.0,0.00019178,2]
[374477569,1753316297884,-123.06005853,0.00019178,2]
[374477570,1753316348248,-336.93994147,0.00019178,2]
[374477571,1753316348273,-460.0,0.00019178,2]
[374477572,1753316348303,-460.0,0.00019178,2]
[374477573,1753316348330,-460.0,0.00019178,2]
[374477574,1753316348358,-460.0,0.00019178,2]
[374477575,1753316348383,-460.0,0.00019178,2]
[374477576,1753316348415,-460.0,0.00019178,2]
[374477577,1753316348444,-460.0,0.00019178,2]
[374477578,1753316348468,-443.06005853,0.00019178,2]
[374477580,1753316635078,-155.0,0.00018899,2]
[374477589,1753316747525,-33.39240436,0.00018899,2]
[374477590,1753316747547,-300.0,0.00018998,2]
[374477591,1753316747568,-1200.0,0.00018998,2]
[374477592,1753316747588,-252.0,0.00018999,2]
[374477593,1753316747608,-238.0,0.00018999,2]
[374477594,1753316747629,-64.50509818,0.00018999,2]
[374477603,1753316826089,-157.3908595,0.0001843,2]
[374477604,1753316826112,-300.0,0.00018999,2]
[374477605,1753316826136,-195.12418857,0.00018999,2]
[374477606,1753316833127,-169.48136937,0.00018998,2]
[374477607,1753316833156,-65.51863063,0.00018998,2]
[374477608,1753316833181,-304.87581143,0.00018999,2]
[374477609,1753316833205,-187.85232391,0.00018999,2]
[374477610,1753316833230,-445.37592416,0.00018999,2]
[374477611,1753316836126,-54.62407584,0.00018999,2]
[374477612,1753316836148,-231.20515116,0.00018999,2]
[374477613,1753316837079,-410.7352044,0.00018999,2]
[374477614,1753316837104,-500.0,0.00018999,2]
[374477615,1753316837125,-689.49374778,0.00019,2]
[374477625,1753316965134,-10074.4,0.00018,2]
[374477633,1753317028843,193.484481,0.00013699,2]
[374477710,1753317032257,-225.14748205,0.00018,2]
[374477712,1753317032268,-647.44022797,0.000189,2]
[374477714,1753317032277,-194.97942814,0.00018999,2]
[374478184,1753317037994,-248.02057186,0.00018999,2]
[374478186,1753317038003,-515.04142814,0.00019,2]
[374478188,1753317038015,-9627.46605526,0.00019,2]
[374478190,1753317038024,-308.71750317,0.00019078,2]
[374478192,1753317038033,-500.0,0.00019173,2]
[374478194,1753317038043,-500.0,0.00019173,2]
[374478196,1753317038052,-500.0,0.00019173,2]
[374478198,1753317038061,-500.0,0.00019173,2]
[374478200,1753317038070,-218.69856381,0.00019177,2]
[374478202,1753317038080,-389.5966683,0.00019177,2]
[374478204,1753317038089,-398.43209973,0.00019178,2]
[374478205,1753317038098,-460.0,0.00019178,2]
[374478206,1753317038108,-460.0,0.00019178,2]
[374478209,1753317038118,-460.0,0.00019178,2]
[374478211,1753317038128,-460.0,0.00019178,2]
[374478212,1753317038138,-460.0,0.00019178,2]
[374478215,1753317038148,-535.71956193,0.00019178,2]
[374478217,1753317038158,-300.00435631,0.00019178,2]
[374478218,1753317038167,-460.0,0.00019178,2]
[374478220,1753317038177,-460.0,0.00019178,2]
[374478223,1753317038187,-462.83383165,0.00019178,2]
[374478226,1753317038196,-460.0,0.00019178,2]
[374478228,1753317038205,-460.0,0.00019178,2]
[374478229,1753317038215,-151.0,0.00019178,2]
[374478232,1753317038224,-460.0,0.00019178,2]
[374478233,1753317038234,-151.0,0.00019178,2]
[374478234,1753317038243,-158.74063793,0.00019178,2]
[374478235,1753317038252,-466.48323368,0.00019178,2]
[374478237,1753317038262,-460.0,0.00019178,2]
[374478239,1753317038272,-429.64154219,0.00019178,2]
[374478240,1753317038281,-460.0,0.00019178,2]
[374478241,1753317038291,-460.0,0.00019178,2]
[374478242,1753317038300,-460.0,0.00019178,2]
[374478244,1753317038310,-225.66594604,0.00019178,2]
[374478246,1753317038322,-234.33405396,0.00019178,2]
[374478248,1753317038331,-460.0,0.00019178,2]
[374478250,1753317038340,-545.33,0.00019178,2]
[374478252,1753317038350,-465.19038475,0.00019178,2]
[374478254,1753317038359,-460.0,0.00019178,2]
[374478255,1753317038368,-460.0,0.00019178,2]
[374478258,1753317038381,-410.34,0.00019178,2]
[374478259,1753317038390,-460.0,0.00019178,2]
[374478261,1753317038399,-431.63689499,0.00019178,2]
[374478263,1753317038408,-533.45958033,0.00019178,2]
[374478265,1753317038419,-460.0,0.00019178,2]
[374478267,1753317038429,-151.0,0.00019178,2]
[374478269,1753317038438,-6.80838632,0.00019178,2]
[374478272,1753317038450,-1190.19161368,0.00019178,2]
[374478274,1753317038459,-460.0,0.00019178,2]
[374478276,1753317038468,-460.0,0.00019178,2]
[374478278,1753317038477,-460.0,0.00019178,2]
[374478280,1753317038487,-151.0,0.00019178,2]
[374478282,1753317038497,-460.0,0.00019178,2]
[374478284,1753317038506,-460.0,0.00019178,2]
[374478286,1753317038516,-460.0,0.00019178,2]
[374478287,1753317038525,-460.0,0.00019178,2]
[374478290,1753317038535,-460.0,0.00019178,2]
[374478292,1753317038545,-460.0,0.00019178,2]
[374478294,1753317038554,-460.0,0.00019178,2]
[374478296,1753317038564,-460.0,0.00019178,2]
[374478298,1753317038574,-460.0,0.00019178,2]
[374478299,1753317038584,-460.0,0.00019178,2]
[374478301,1753317038593,-460.0,0.00019178,2]
[374478303,1753317038602,-460.0,0.00019178,2]
[374478305,1753317038611,-460.0,0.00019178,2]
[374478308,1753317038623,-460.0,0.00019178,2]
[374478326,1753317038784,-463.85214761,0.00019178,2]
[374478328,1753317038795,-460.0,0.00019178,2]
[374478331,1753317038804,-460.0,0.00019178,2]
[374478333,1753317038814,-460.0,0.00019178,2]
[374478334,1753317038824,-460.0,0.00019178,2]
[374478337,1753317038834,-460.0,0.00019178,2]
[374478339,1753317038844,-460.0,0.00019178,2]
[374478340,1753317038852,-460.0,0.00019178,2]
[374478342,1753317038861,-460.0,0.00019178,2]
[374478344,1753317038871,-460.0,0.00019178,2]
[374478346,1753317038879,-460.0,0.00019178,2]
[374478348,1753317038888,-460.0,0.00019178,2]
[374478350,1753317038898,-460.0,0.00019178,2]
[374478352,1753317038907,-460.0,0.00019178,2]
[374478354,1753317038916,-460.0,0.00019178,2]
[374478356,1753317038925,-460.0,0.00019178,2]
[374478358,1753317038935,-463.9073165,0.00019178,2]
[374478360,1753317038944,-460.0,0.00019178,2]
[374478362,1753317038954,-460.0,0.00019178,2]
[374478364,1753317038963,-200.04322058,0.00019178,2]
[374478366,1753317038973,-460.0,0.00019178,2]
[374478368,1753317038982,-460.0,0.00019178,2]
[374478370,1753317038991,-460.0,0.00019178,2]
[374478372,1753317039000,-466.63206287,0.00019178,2]
[374478374,1753317039010,-460.0,0.00019178,2]
[374478376,1753317039019,-460.0,0.00019178,2]
[374478378,1753317039029,-460.0,0.00019178,2]
[374478381,1753317039041,-460.0,0.00019178,2]
[374478382,1753317039051,-460.0,0.00019178,2]
[374478385,1753317039062,-460.0,0.00019178,2]
[374478386,1753317039071,-460.0,0.00019178,2]
[374478388,1753317039081,-497.21,0.00019178,2]
[374478390,1753317039090,-460.0,0.00019178,2]
[374478392,1753317039099,-460.0,0.00019178,2]
[374478394,1753317039109,-460.0,0.00019178,2]
[374478396,1753317039118,-460.0,0.00019178,2]
[374478399,1753317039130,-460.0,0.00019178,2]
[374478400,1753317039139,-460.0,0.00019178,2]
[374478402,1753317039148,-225.05540041,0.00019178,2]
[374478404,1753317039158,-440.08222767,0.00019178,2]
[374478406,1753317039166,-460.0,0.00019178,2]
[374478408,1753317039176,-460.0,0.00019178,2]
[374478410,1753317039185,-460.0,0.00019178,2]
[374478412,1753317039194,-460.0,0.00019178,2]
[374478414,1753317039204,-460.0,0.00019178,2]
[374478416,1753317039213,-467.97606816,0.00019178,2]
[374478418,1753317039223,-460.0,0.00019178,2]
[374478420,1753317039232,-460.0,0.00019178,2]
[374478422,1753317039242,-460.0,0.00019178,2]
[374478424,1753317039251,-460.0,0.00019178,2]
[374478426,1753317039260,-460.0,0.00019178,2]
[374478428,1753317039269,-460.0,0.00019178,2]
[374478430,1753317039279,-460.0,0.00019178,2]
[374478432,1753317039288,-460.0,0.00019178,2]
[374478434,1753317039297,-460.0,0.00019178,2]
[374478436,1753317039307,-1043.11,0.00019178,2]
[374478438,1753317039316,-460.0,0.00019178,2]
[374478440,1753317039325,-460.0,0.00019178,2]
[374478442,1753317039334,-460.0,0.00019178,2]
[374478444,1753317039344,-460.0,0.00019178,2]
[374478446,1753317039353,-460.0,0.00019178,2]
[374478448,1753317039362,-460.0,0.00019178,2]
[374478450,1753317039372,-460.0,0.00019178,2]
[374478453,1753317039382,-460.0,0.00019178,2]
[374478455,1753317039391,-576.90476889,0.00019178,2]
[374478457,1753317039400,-460.0,0.00019178,2]
[374478458,1753317039409,-460.0,0.00019178,2]
[374478461,1753317039422,-188.5140922,0.00019178,2]
[374478463,1753317039431,-460.0,0.00019178,2]
[374478465,1753317039440,-151.0,0.00019178,2]
[374478467,1753317039449,-913.0,0.00019178,2]
[374478469,1753317039460,-151.0,0.00019178,2]
[374478471,1753317039469,-460.0,0.00019178,2]
[374478473,1753317039479,-151.0,0.00019178,2]
[374478476,1753317039488,-151.0,0.00019178,2]
[374478479,1753317039499,-151.0,0.00019178,2]
[374478482,1753317039508,-500.0,0.00019178,2]
[374478485,1753317039517,-192.40003544,0.00019178,2]
[374478488,1753317039530,-151.0,0.00019178,2]
[374478491,1753317039540,-151.0,0.00019178,2]
[374478494,1753317039549,-460.0,0.00019178,2]
[374478497,1753317039558,-460.0,0.00019178,2]
[374478500,1753317039568,-460.0,0.00019178,2]
[374478503,1753317039577,-460.0,0.00019178,2]
[374478506,1753317039587,-460.0,0.00019178,2]
[374478509,1753317039596,-460.0,0.00019178,2]
[374478512,1753317039606,-165.23399673,0.00019178,2]
[374478515,1753317039616,-151.0,0.00019178,2]
[374478518,1753317039626,-460.0,0.00019178,2]
[374478521,1753317039636,-500.0,0.00019178,2]
[374478524,1753317039645,-2632.4,0.00019178,2]
[374478527,1753317039656,-2632.4,0.00019178,2]
[374478530,1753317039666,-151.0,0.00019178,2]
[374478532,1753317039675,-151.0,0.00019178,2]
[374478534,1753317039685,-460.0,0.00019178,2]
[374478536,1753317039694,-151.0,0.00019178,2]
[374478538,1753317039704,-500.0,0.00019178,2]
[374478540,1753317039713,-151.0,0.00019178,2]
[374478542,1753317039723,-151.0,0.00019178,2]
[374478544,1753317039733,-460.0,0.00019178,2]
[374478546,1753317039742,-896.83,0.00019178,2]
[374478548,1753317039752,-460.0,0.00019178,2]
[374478550,1753317039761,-460.0,0.00019178,2]
[374478552,1753317039770,-879.57,0.00019178,2]
[374478554,1753317039780,-460.0,0.00019178,2]
[374478556,1753317039789,-460.0,0.00019178,2]
[374478558,1753317039799,-725.83,0.00019178,2]
[374478560,1753317039808,-1799.48,0.00019178,2]
[374478562,1753317039817,-460.0,0.00019178,2]
[374478564,1753317039827,-460.0,0.00019178,2]
[374478566,1753317039836,-460.0,0.00019178,2]
[374478568,1753317039846,-460.0,0.00019178,2]
[374478570,1753317039855,-460.0,0.00019178,2]
[374478572,1753317039865,-460.0,0.00019178,2]
[374478574,1753317039874,-460.0,0.00019178,2]
[374478576,1753317039884,-460.0,0.00019178,2]
[374478578,1753317039894,-495.18,0.00019178,2]
[374478580,1753317039903,-460.0,0.00019178,2]
[374478582,1753317039913,-460.0,0.00019178,2]
[374478584,1753317039922,-460.0,0.00019178,2]
[374478586,1753317039932,-460.0,0.00019178,2]
[374478588,1753317039942,-460.0,0.00019178,2]
[374478590,1753317039951,-460.0,0.00019178,2]
[374478592,1753317039961,-460.0,0.00019178,2]
[374478594,1753317039971,-460.0,0.00019178,2]
[374478596,1753317039982,-460.0,0.00019178,2]
[374478598,1753317039991,-1245.54,0.00019178,2]
[374478600,1753317040001,-460.0,0.00019178,2]
[374478602,1753317040011,-460.0,0.00019178,2]
[374478604,1753317040020,-460.0,0.00019178,2]
[374478606,1753317040029,-460.0,0.00019178,2]
[374478608,1753317040039,-460.0,0.00019178,2]
[374478610,1753317040048,-460.0,0.00019178,2]
[374478612,1753317040057,-500.19,0.00019178,2]
[374478614,1753317040067,-460.0,0.00019178,2]
[374478617,1753317040077,-460.0,0.00019178,2]
[374478618,1753317040086,-460.0,0.00019178,2]
[374478620,1753317040096,-460.0,0.00019178,2]
[374478623,1753317040106,-460.0,0.00019178,2]
[374478625,1753317040115,-460.0,0.00019178,2]
[374478626,1753317040124,-460.0,0.00019178,2]
[374478628,1753317040134,-460.0,0.00019178,2]
[374478630,1753317040143,-460.0,0.00019178,2]
[374478632,1753317040153,-2447.78,0.00019178,2]
[374478634,1753317040162,-802.41,0.00019178,2]
[374478636,1753317040172,-460.0,0.00019178,2]
[374478638,1753317040181,-460.0,0.00019178,2]
[374478640,1753317040191,-639.78,0.00019178,2]
[374478642,1753317040200,-460.0,0.00019178,2]
[374478644,1753317040210,-460.0,0.00019178,2]
[374478646,1753317040220,-1128.62,0.00019178,2]
[374478648,1753317040230,-460.0,0.00019178,2]
[374478650,1753317040239,-949.73,0.00019178,2]
[374478652,1753317040249,-460.0,0.00019178,2]
[374478654,1753317040258,-460.0,0.00019178,2]
[374478656,1753317040268,-460.0,0.00019178,2]
[374478658,1753317040278,-460.0,0.00019178,2]
[374478660,1753317040288,-460.0,0.00019178,2]
[374478662,1753317040297,-460.0,0.00019178,2]
[374478664,1753317040307,-292.0,0.00019178,2]
[374478666,1753317040318,-460.0,0.00019178,2]
[374478668,1753317040327,-460.0,0.00019178,2]
[374478670,1753317040337,-500.0,0.00019178,2]
[374478672,1753317040346,-460.0,0.00019178,2]
[374478674,1753317040356,-462.76559744,0.00019178,2]
[374478676,1753317040365,-461.95446457,0.00019178,2]
[374478678,1753317040377,-248.17076339,0.00019178,2]
[374478680,1753317040387,-460.0,0.00019178,2]
[374478682,1753317040396,-460.0,0.00019178,2]
[374478684,1753317040406,-460.0,0.00019178,2]
[374478686,1753317040416,-460.0,0.00019178,2]
[374478688,1753317040430,-672.57,0.00019178,2]
[374478691,1753317040439,-460.0,0.00019178,2]
[374478693,1753317040448,-460.0,0.00019178,2]
[374478694,1753317040459,-460.0,0.00019178,2]
[374478696,1753317040468,-460.0,0.00019178,2]
[374478699,1753317040478,-460.0,0.00019178,2]
[374478701,1753317040487,-460.0,0.00019178,2]
[374478703,1753317040498,-460.0,0.00019178,2]
[374478705,1753317040507,-460.0,0.00019178,2]
[374478707,1753317040516,-460.0,0.00019178,2]
[374478709,1753317040526,-460.0,0.00019178,2]
[374478711,1753317040535,-460.0,0.00019178,2]
[374478713,1753317040544,-460.0,0.00019178,2]
[374478714,1753317040554,-460.0,0.00019178,2]
[374478717,1753317040565,-460.0,0.00019178,2]
[374478719,1753317040575,-460.0,0.00019178,2]
[374478720,1753317040585,-460.0,0.00019178,2]
[374478721,1753317040595,-460.0,0.00019178,2]
[374478723,1753317040604,-655.55,0.00019178,2]
[374478725,1753317040614,-460.0,0.00019178,2]
[374478727,1753317040625,-180.0795,0.00019178,2]
[374478729,1753317040634,-150.0,0.00019225,2]
[374478731,1753317040643,-402.85,0.00019442,3]
[374478733,1753317040653,-201.42,0.00019442,3]
[374478735,1753317040662,-604.29,0.00019442,3]
[374478737,1753317040671,-151.0,0.00019452,2]
[374478739,1753317040680,-198.0,0.00019452,2]
[374478741,1753317040690,-1197.0,0.00019452,2]
[374478743,1753317040700,-151.0,0.00019452,2]
[374478745,1753317040710,-913.0,0.00019452,2]
[374478747,1753317040720,-151.0,0.00019452,2]
[374478749,1753317040730,-151.0,0.00019452,2]
[374478751,1753317040739,-542.59033289,0.00019452,2]
[374478753,1753317040749,-220.44796763,0.00019452,2]
[374478755,1753317040759,-151.0,0.00019452,2]
[374478757,1753317040769,-151.0,0.00019452,2]
[374478759,1753317040778,-500.0,0.00019452,2]
[374478761,1753317040788,-151.56803976,0.00019452,2]
[374478763,1753317040797,-500.0,0.00019452,2]
[374478765,1753317040807,-151.0,0.00019452,2]
[374478767,1753317040816,-500.0,0.00019452,2]
[374478769,1753317040826,-462.32236347,0.00019452,2]
[374478771,1753317040836,-460.0,0.00019452,2]
[374478773,1753317040845,-460.0,0.00019452,2]
[374478775,1753317040855,-341.83953974,0.00019452,2]
[374478778,1753317040864,-460.0,0.00019452,2]
[374478779,1753317040876,-460.0,0.00019452,2]
[374478782,1753317040886,-460.0,0.00019452,2]
[374478785,1753317040906,-460.0,0.00019452,2]
[374478787,1753317040915,-460.0,0.00019452,2]
[374478789,1753317040925,-460.0,0.00019452,2]
[374478791,1753317040935,-545.33,0.00019452,2]
[374478793,1753317040945,-463.88303884,0.00019452,2]
[374478795,1753317040955,-481.72036995,0.00019452,2]
[374478797,1753317040964,-460.0,0.00019452,2]
[374478799,1753317040974,-460.0,0.00019452,2]
[374478801,1753317040984,-460.0,0.00019452,2]
[374478803,1753317040994,-460.0,0.00019452,2]
[374478805,1753317041003,-460.0,0.00019452,2]
[374478807,1753317041013,-460.0,0.00019452,2]
[374478809,1753317041023,-460.0,0.00019452,2]
[374478811,1753317041032,-460.0,0.00019452,2]
[374478813,1753317041042,-460.0,0.00019452,2]
[374478815,1753317041052,-460.0,0.00019452,2]
[374478817,1753317041061,-460.0,0.00019452,2]
[374478819,1753317041071,-460.0,0.00019452,2]
[374478821,1753317041080,-460.0,0.00019452,2]
[374478823,1753317041090,-460.0,0.00019452,2]
[374478825,1753317041100,-460.0,0.00019452,2]
[374478827,1753317041109,-460.0,0.00019452,2]
[374478829,1753317041119,-460.0,0.00019452,2]
[374478831,1753317041132,-460.0,0.00019452,2]
[374478833,1753317041141,-460.0,0.00019452,2]
[374478835,1753317041151,-460.0,0.00019452,2]
[374478837,1753317041160,-460.0,0.00019452,2]